bitfinex-derivatives/quotes_SOLF0:USTF0_20241005
["timestamp","ask_amount","ask_price","bid_price","bid_amount"]
[1728091229508,10.9734,143.53,143.51,5.10502]
[1728091230305,7.49,143.53,143.51,5.10502]
[1728091230909,7.49,143.53,143.52,1.20251481]
[1728091232909,10.9732,143.54,143.52,1.20251481]
[1728091234401,1.3006,143.59,143.52,1.20251481]
[1728091234600,7.49,143.56,143.52,1.20251481]
[1728091234814,7.49,143.56,143.53,1.20248886]
[1728091235003,7.49,143.56,143.51,12.59502]
[1728091235309,10.9728,143.56,143.52,4.6859898]
[1728091235517,7.49,143.55,143.53,1.20246754]
[1728091237914,7.49,143.55,143.52,3.4835]
[1728091238116,7.49,143.55,143.53,3.4832]
[1728091245313,7.49,143.55,143.54,3.4831]
[1728091245618,7.49,143.57,143.52,7.49]
[1728091245815,1.3006,143.59,143.57,3.4823]
[1728091246016,7.49,143.59,143.57,3.4823]
[1728091246223,7.49,143.59,143.55,4.98]
[1728091246519,7.49,143.59,143.56,3.4826]
[1728091248018,10.9719,143.59,143.56,3.4826]
[1728091249024,7.49,143.57,143.55,4.98]
[1728091249330,7.49,143.56,143.55,4.98]
[1728091250419,7.49,143.56,143.54,3.483]
[1728091250615,7.49,143.56,143.53,3.4832]
[1728091250816,7.49,143.55,143.53,8.4632]
[1728091251218,7.49,143.55,143.53,3.4832]
[1728091251516,7.49,143.55,143.53,8.4632]
[1728091254819,7.49,143.54,143.51,0.12502]
[1728091255022,7.49,143.52,143.51,5.10502]
[1728091255421,3.4835,143.53,143.51,5.10502]
[1728091255724,7.49,143.52,143.51,5.10502]
[1728091255930,7.49,143.52,143.51,0.12502]
[1728091256317,10.9736,143.52,143.51,0.12502]
[1728091258019,3.484,143.51,143.47,4.98]
[1728091258322,7.49,143.48,143.47,4.98]
[1728091259726,7.49,143.48,143.46,3.485]
[1728091259922,7.49,143.48,143.46,8.465]
[1728091261324,7.49,143.48,143.47,1.20377681]
[1728091262429,7.49,143.48,143.47,1.20377794]
[1728091266326,7.49,143.48,143.46,1.20377794]
[1728091266534,7.49,143.47,143.45,5.10502]
[1728091266833,7.49,143.47,143.46,1.20381675]
[1728091267124,7.49,143.47,143.45,5.10502]
[1728091267531,7.49,143.47,143.45,0.12502]
[1728091268121,10.975,143.47,143.45,0.12502]
[1728091268632,7.6834,143.54,143.45,0.12502]
[1728091268835,7.6834,143.54,143.47,3.4848]
[1728091269044,7.49,143.49,143.45,0.12502]
[1728091269831,7.49,143.49,143.47,3.4846]
[1728091271332,7.49,143.49,143.46,3.485]
[1728091271541,7.49,143.48,143.46,3.485]
[1728091271741,7.49,143.48,143.45,0.12502]
[1728091272736,7.49,143.48,143.46,3.4851]
[1728091273941,3.4841,143.5,143.45,0.12502]
[1728091274148,7.49,143.48,143.47,3.4848]
[1728091274441,7.49,143.48,143.45,0.12502]
[1728091274637,7.49,143.46,143.45,0.12502]
[1728091276247,10.9751,143.46,143.45,0.12502]
[1728091278657,10.9751,143.46,143.42,8.466]
[1728091278853,7.49,143.44,143.42,8.466]
[1728091281759,3.4851,143.46,143.43,3.4858]
[1728091282059,7.49,143.45,143.43,3.4858]
[1728091286056,7.49,143.44,143.42,8.466]
[1728091289166,7.49,143.44,143.42,4.98]
[1728091289366,7.49,143.45,143.43,3.4858]
[1728091291063,7.49,143.45,143.44,1.20394403]
[1728091291363,7.49,143.45,143.43,3.4858]
[1728091291662,7.49,143.45,143.44,1.20394406]
[1728091294467,8.9693,143.49,143.44,1.20394406]
[1728091294468,7.4737,143.49,143.44,1.20394406]
[1728091294665,7.49,143.47,143.45,1.20394406]
[1728091294863,7.49,143.47,143.46,1.20394406]
[1728091295063,7.49,143.47,143.43,1.20394406]
[1728091295269,7.49,143.47,143.44,6.18394406]
[1728091295568,4.98,143.52,143.45,1.20380315]
[1728091295771,7.49,143.48,143.45,1.20380315]
[1728091295971,7.49,143.48,143.47,3.4847]
[1728091296267,7.49,143.48,143.47,4.68843251]
[1728091298373,3.60902,143.51,143.47,4.68843251]
[1728091298565,3.60902,143.51,143.48,1.20373251]
[1728091298757,7.49,143.49,143.48,1.20373251]
[1728091299171,7.49,143.49,143.47,3.4847]
[1728091300566,7.49,143.49,143.46,3.485]
[1728091300766,7.49,143.47,143.46,3.485]
[1728091302078,7.49,143.47,143.44,8.4653]
[1728091302278,7.49,143.46,143.44,4.98]
[1728091302967,7.49,143.46,143.44,8.4654]
[1728091303167,7.49,143.46,143.44,3.4854]
[1728091303378,7.49,143.46,143.44,8.4654]
[1728091308176,7.49,143.46,143.45,3.4853]
[1728091313279,7.49,143.46,143.45,4.68825331]
[1728091315184,3.4845,143.49,143.47,3.4848]
[1728091315382,7.49,143.48,143.44,4.98]
[1728091315582,7.49,143.46,143.45,1.20289603]
[1728091316081,10.9751,143.46,143.45,1.20294544]
[1728091316587,0.12502,143.51,143.45,1.20294544]
[1728091316787,7.49,143.46,143.45,1.20294544]
[1728091317090,3.4849,143.47,143.45,1.20294544]
[1728091317387,7.49,143.46,143.45,1.20294544]
[1728091320289,7.49,143.46,143.45,1.20264219]
[1728091320890,7.49,143.46,143.45,1.20257755]
[1728091321686,7.49,143.46,143.44,3.4855]
[1728091322982,7.49,143.46,143.43,4.98]
[1728091323188,7.49,143.46,143.45,3.4853]
[1728091324883,3.4843,143.5,143.46,3.4849]
[1728091325090,7.49,143.48,143.46,3.4849]
[1728091325795,7.49,143.48,143.45,3.4852]
[1728091325997,7.49,143.47,143.45,3.4852]
[1728091327288,10.9748,143.47,143.44,3.4854]
[1728091327490,7.49,143.45,143.4,17.94907083]
[1728091327691,7.49,143.44,143.41,6.18282431]
[1728091327886,4.98,143.49,143.42,1.20282431]
[1728091328091,7.49,143.43,143.42,1.20282431]
[1728091328986,7.49,143.43,143.42,4.68872431]
[1728091329393,2.7603,143.48,143.42,38.8806216]
[1728091329591,7.49,143.44,143.43,34.19189729]
[1728091331886,7.49,143.44,143.43,17.82389083]
[1728091332390,3.4854,143.45,143.43,17.82389083]
[1728091332598,10.9754,143.45,143.43,17.82389083]
[1728091333289,7.49,143.45,143.43,17.82389083]
[1728091334194,7.49,143.45,143.43,21.30969083]
[1728091334892,1.3844,143.48,143.43,17.82389083]
[1728091335198,7.49,143.48,143.44,34.19189729]
[1728091335397,7.49,143.48,143.45,4.98]
[1728091335587,7.49,143.48,143.45,8.4652]
[1728091335900,3.4844,143.49,143.45,8.4652]
[1728091336084,7.49,143.47,143.45,8.4652]
[1728091338990,7.49,143.47,143.45,4.98]
[1728091339195,0.12502,143.51,143.45,4.98]
[1728091339392,7.49,143.49,143.45,4.98]
[1728091339892,7.49,143.49,143.46,3.4849]
[1728091340395,7.49,143.48,143.46,3.4849]
[1728091343783,7.49,143.48,143.47,1.20027868]
[1728091344290,7.49,143.48,143.47,1.20027869]
[1728091346094,7.49,143.49,143.47,1.20027869]
[1728091346298,7.49,143.49,143.48,4.68487869]
[1728091346599,7.49,143.49,143.45,4.98]
[1728091346793,7.49,143.49,143.47,3.4847]
[1728091347790,0.12502,143.51,143.48,4.98]
[1728091347991,7.49,143.49,143.42,7.49]
[1728091348194,7.49,143.47,143.43,19.02433276]
[1728091348398,7.49,143.45,143.44,6.18044193]
[1728091349702,0.12502,143.51,143.44,9.66584193]
[1728091350001,0.12502,143.51,143.45,1.20044193]
[1728091350002,7.49,143.46,143.45,1.20044193]
[1728091351687,7.49,143.46,143.45,1.20143288]
[1728091351891,7.49,143.46,143.44,4.98]
[1728091352104,7.49,143.45,143.44,4.98]
[1728091352492,7.49,143.45,143.42,3.486]
[1728091352798,7.49,143.44,143.43,4.98]
[1728091354907,10.9756,143.44,143.43,4.98]
[1728091355896,7.49,143.44,143.43,4.98]
[1728091359101,7.49,143.44,143.43,21.34800646]
[1728091359301,7.49,143.44,143.43,4.98]
[1728091359706,7.49,143.44,143.43,21.34800646]
[1728091359903,3.56236933,143.47,143.43,4.98]
[1728091360214,3.56236933,143.47,143.43,21.34800646]
[1728091360414,3.56236933,143.47,143.43,4.98]
[1728091361408,3.4854,143.45,143.43,4.98]
[1728091361601,7.49,143.44,143.43,4.98]
[1728091364616,3.485,143.47,143.43,8.4656]
[1728091364828,7.49,143.46,143.43,8.4656]
[1728091367521,10.9751,143.46,143.43,8.4656]
[1728091367716,2.698,143.48,143.43,8.4656]
[1728091367911,10.975,143.47,143.43,8.4656]
[1728091369319,10.975,143.47,143.44,3.4855]
[1728091370118,10.975,143.47,143.43,8.4656]
[1728091370514,10.975,143.47,143.43,4.98]
[1728091370716,7.49,143.47,143.44,3.4854]
[1728091372019,10.9748,143.47,143.44,3.4854]
[1728091374025,10.9748,143.47,143.43,4.98]
[1728091374226,10.9748,143.47,143.43,8.4657]
[1728091379427,3.4852,143.46,143.43,8.4657]
[1728091379728,3.4852,143.46,143.43,4.98]
[1728091380929,3.4852,143.46,143.44,1.20307993]
[1728091381330,7.49,143.47,143.43,8.4656]
[1728091381331,10.9749,143.47,143.43,8.4656]
[1728091386329,10.9754,143.45,143.43,4.98]
[1728091386931,7.49,143.45,143.43,4.98]
[1728091394936,10.9754,143.45,143.43,4.98]
[1728091395739,7.49,143.45,143.43,4.98]
[1728091396041,3.4856,143.44,143.43,4.98]
[1728091396634,3.4856,143.44,143.42,4.98]
[1728091397345,7.49,143.43,143.42,4.98]
[1728091397530,10.9758,143.43,143.42,4.98]
[1728091398338,10.9758,143.43,143.4,5.10518]
[1728091398543,7.49,143.42,143.4,5.10518]
[1728091400145,7.49,143.41,143.4,0.12518]
[1728091401739,10.9763,143.41,143.4,0.12518]
[1728091404943,10.9763,143.41,143.4,1.3296203]
[1728091408556,10.9763,143.41,143.4,1.32967799]
[1728091412057,10.9763,143.41,143.4,0.12518]
[1728091428374,3.4863,143.41,143.4,0.12518]
[1728091428668,10.9763,143.41,143.4,0.12518]
[1728091428872,3.4863,143.41,143.4,0.12518]
[1728091429068,10.9763,143.41,143.4,0.12518]
[1728091430074,2.6614,143.43,143.4,0.12518]
[1728091430270,7.49,143.41,143.4,0.12518]
[1728091431678,10.9763,143.41,143.4,0.12518]
[1728091433281,3.4861,143.42,143.4,0.12518]
[1728091433580,7.49,143.41,143.4,0.12518]
[1728091434372,7.49,143.41,143.4,1.32962744]
[1728091440878,7.49,143.41,143.4,0.12518]
[1728091441083,7.49,143.41,143.4,1.32962122]
[1728091441486,7.49,143.41,143.4,1.32957458]
[1728091442579,7.49,143.41,143.4,0.12518]
[1728091447480,10.9763,143.41,143.4,0.12518]
[1728091453194,3.4865,143.4,143.39,0.12502]
[1728091455486,10.9765,143.4,143.39,0.12502]
[1728091457996,3.4865,143.4,143.39,0.12502]
[1728091458188,7.49,143.4,143.39,0.12502]
[1728091458904,2.6691,143.43,143.39,0.12502]
[1728091459094,7.49,143.4,143.39,0.12502]
[1728091459695,3.51819248,143.44,143.39,0.12502]
[1728091459896,7.49,143.41,143.39,0.12502]
[1728091460296,7.49,143.41,143.39,3.61172]
[1728091465202,7.49,143.41,143.4,1.20441095]
[1728091465598,7.49,143.41,143.39,3.61172]
[1728091465798,7.49,143.41,143.4,1.2044234]
[1728091466606,7.49,143.41,143.4,4.6909234]
[1728091468199,3.4857,143.44,143.4,4.6909234]
[1728091468406,7.49,143.41,143.4,3.4865]
[1728091468603,7.49,143.41,143.4,4.69089832]
[1728091469308,7.49,143.41,143.4,4.6908922]
[1728091470313,81.71409947,143.45,143.42,3.486]
[1728091470498,7.49,143.43,143.42,3.486]
[1728091470803,7.49,143.43,143.42,1.20407718]
[1728091472400,7.49,143.43,143.41,8.4661]
[1728091473000,89.20409947,143.45,143.43,3.4857]
[1728091473305,75.37690987,143.54,143.44,4.96]
[1728091473506,7.49,143.48,143.46,3.4848]
[1728091474906,1.3129,143.53,143.47,4.96]
[1728091475114,7.49,143.5,143.49,3.4843]
[1728091475298,7.49,143.5,143.48,4.96]
[1728091475502,7.49,143.5,143.48,8.4445]
[1728091482522,7.49,143.5,143.49,3.4843]
[1728091483012,7.61502,143.51,143.49,3.4843]
[1728091483221,0.12502,143.51,143.49,3.4843]
[1728091483518,0.12502,143.51,143.5,3.4841]
[1728091485018,0.09690987,143.54,143.53,3.4834]
[1728091485212,0.09690987,143.54,143.53,15.9334]
[1728091485515,0.17933144,143.55,143.53,12.45]
[1728091485717,0.17933144,143.55,143.54,3.4831]
[1728091486122,0.17933144,143.55,143.54,10.9731]
[1728091486513,0.27537233,143.56,143.55,3.4829]
[1728091487020,0.27537233,143.56,143.55,10.9729]
[1728091489318,0.4321432,143.57,143.55,7.49]
[1728091489519,0.4321432,143.57,143.56,8.4426]
[1728091490425,0.48175788,143.58,143.57,3.4824]
[1728091491423,0.48175788,143.58,143.57,4.96]
[1728091492323,0.48175788,143.58,143.57,8.4424]
[1728091493028,0.48175788,143.58,143.57,15.9324]
[1728091494119,0.48175788,143.58,143.51,1.51152]
[1728091494120,7.97175788,143.58,143.51,1.51152]
[1728091494329,7.49,143.55,143.52,4.96]
[1728091494521,7.49,143.53,143.52,4.96]
[1728091495720,10.9734,143.53,143.52,4.96]
[1728091500330,7.49,143.55,143.52,4.96]
[1728091500627,3.4832,143.54,143.52,4.96]
[1728091501525,3.4832,143.54,143.51,3.60882]
[1728091501723,3.4832,143.54,143.52,4.96]
[1728091501918,3.88099212,143.58,143.51,3.60882]
[1728091501919,7.49,143.53,143.51,0.12502]
[1728091502119,3.88099212,143.58,143.52,2.43]
[1728091502529,7.49,143.53,143.52,2.43]
[1728091502729,10.9734,143.53,143.52,2.43]
[1728091507737,10.9734,143.53,143.51,5.08502]
[1728091508342,10.9736,143.52,143.51,0.12502]
[1728091508632,7.49,143.52,143.49,4.96]
[1728091508832,10.9741,143.5,143.49,4.96]
[1728091509734,7.49,143.5,143.49,1.4756]
[1728091510434,7.49,143.5,143.45,0.12502]
[1728091510633,7.49,143.47,143.45,5.08502]
[1728091510839,10.975,143.47,143.45,5.08502]
[1728091511041,7.49,143.47,143.45,5.08502]
[1728091511638,7.49,143.46,143.45,5.08502]
[1728091512135,10.9751,143.46,143.45,5.08502]
[1728091513543,10.9751,143.46,143.45,0.12502]
[1728091514543,4.1634,143.47,143.45,0.12502]
[1728091514848,11.6534,143.47,143.45,0.12502]
[1728091516042,15.1383,143.47,143.45,0.12502]
[1728091516340,11.6534,143.47,143.45,0.12502]
[1728091518046,15.1382,143.47,143.45,0.12502]
[1728091522444,7.49,143.46,143.45,0.12502]
[1728091522639,10.9751,143.46,143.45,0.12502]
[1728091533058,7.49,143.46,143.39,0.12502]
[1728091533358,10.9761,143.42,143.4,4.96]
[1728091533749,7.49,143.42,143.4,4.96]
[1728091536258,7.49,143.42,143.39,3.61182]
[1728091536459,7.49,143.42,143.4,4.96]
[1728091538659,7.49,143.42,143.39,3.61182]
[1728091538846,7.49,143.42,143.39,8.57182]
[1728091539450,7.49,143.42,143.39,3.61182]
[1728091539650,7.49,143.42,143.39,8.57182]
[1728091542361,10.976,143.42,143.39,8.57182]
[1728091543161,10.976,143.42,143.39,5.08502]
[1728091544061,10.976,143.42,143.39,8.57172]
[1728091547658,10.976,143.42,143.4,1.20437427]
[1728091549763,10.976,143.42,143.39,8.57172]
[1728091549970,10.976,143.42,143.4,1.20437428]
[1728091550463,7.49,143.41,143.39,5.08502]
[1728091550668,7.49,143.41,143.4,1.20437432]
[1728091553873,7.49,143.41,143.39,5.08502]
[1728091554067,7.49,143.41,143.4,1.20437433]
[1728091555773,7.49,143.41,143.39,5.08502]
[1728091555976,7.49,143.41,143.39,8.57182]
[1728091558473,3.4862,143.42,143.39,8.57182]
[1728091558678,7.49,143.41,143.39,8.57182]
[1728091560883,3.4854,143.45,143.4,7.49]
[1728091561371,10.9752,143.46,143.42,3.4859]
[1728091561578,10.9752,143.46,143.42,8.4459]
[1728091563474,7.49,143.44,143.42,8.4459]
[1728091564972,7.49,143.43,143.42,4.96]
[1728091565966,10.9758,143.43,143.42,4.96]
[1728091567281,7.49,143.43,143.42,4.96]
[1728091569386,85.87127377,143.47,143.42,4.96]
[1728091569577,10.9752,143.46,143.43,3.4858]
[1728091569875,7.49,143.46,143.43,3.4858]
[1728091570278,0.12502,143.51,143.45,3.4853]
[1728091570478,7.49,143.5,143.45,12.45]
[1728091571481,7.49,143.49,143.45,4.96]
[1728091571677,7.49,143.49,143.46,3.485]
[1728091572376,7.49,143.47,143.45,4.96]
[1728091574375,3.4851,143.46,143.45,4.96]
[1728091574583,7.49,143.47,143.45,4.96]
[1728091575177,10.9749,143.47,143.45,4.96]
[1728091578289,10.9747,143.48,143.45,8.4453]
[1728091580488,10.9747,143.48,143.45,4.96]
[1728091580889,0.12502,143.51,143.46,1.20397542]
[1728091580890,7.49,143.49,143.46,1.20397542]
[1728091581490,10.9742,143.5,143.47,3.4847]
[1728091581686,7.49,143.5,143.48,4.96]
[1728091581885,0.12502,143.51,143.49,4.96]
[1728091582282,3.60892,143.51,143.49,4.96]
[1728091585391,11.09892,143.51,143.49,4.96]
[1728091589693,7.49,143.5,143.41,4.1854]
[1728091589896,7.49,143.46,143.43,3.4856]
[1728091590394,7.49,143.46,143.44,3.4855]
[1728091591188,0.12502,143.51,143.44,7.49]
[1728091591394,0.12502,143.51,143.45,4.96]
[1728091591395,7.49,143.49,143.45,4.96]
[1728091592990,7.49,143.49,143.46,3.4849]
[1728091594300,10.9744,143.49,143.46,3.4849]
[1728091596092,7.49,143.47,143.38,7.27638954]
[1728091596287,7.49,143.4,143.33,0.12502]
[1728091596486,7.49,143.34,143.33,0.12502]
[1728091596688,7.49,143.34,143.27,2.79032]
[1728091596895,7.49,143.3,143.27,2.79032]
[1728091597491,11.72,143.31,143.27,2.79032]
[1728091598301,15.2089,143.31,143.27,2.79032]
[1728091599900,11.72,143.33,143.27,2.79032]
[1728091600198,15.2083,143.33,143.27,2.79032]
[1728091600895,15.2083,143.33,143.27,6.27992]
[1728091602601,3.4885,143.32,143.27,6.27992]
[1728091606107,11.72,143.33,143.27,6.27992]
[1728091606304,3.4887,143.31,143.27,6.27992]
[1728091608499,11.72,143.33,143.21,0.12502]
[1728091608500,11.72,143.28,143.21,0.12502]
[1728091608705,11.72,143.33,143.21,0.12502]
[1728091608706,3.4909,143.22,143.21,0.12502]
[1728091610007,11.72,143.22,143.17,5.2]
[1728091610211,3.4916,143.2,143.17,5.2]
[1728091612007,11.72,143.19,143.17,5.2]
[1728091612402,15.2117,143.19,143.17,5.2]
[1728091612912,11.72,143.19,143.15,0.12502]
[1728091613212,15.2117,143.19,143.15,5.32502]
[1728091613698,15.2117,143.19,143.15,0.12502]
[1728091613898,15.2117,143.19,143.16,5.2]
[1728091614308,3.4916,143.2,143.16,5.2]
[1728091615410,1.3823,143.22,143.16,5.2]
[1728091616317,4.8734,143.22,143.17,3.492]
[1728091617916,11.72,143.25,143.16,16.92]
[1728091619017,3.491,143.22,143.18,3.4917]
[1728091619223,3.491,143.22,143.19,5.2]
[1728091621922,3.4933,143.12,143.1,5.13055751]
[1728091622214,11.72,143.14,143.03,3.5516632]
[1728091622415,11.72,143.14,143.03,0.12502]
[1728091622620,11.72,143.14,143.02,10.84502]
[1728091623324,11.72,143.14,143.03,6.14]
[1728091623711,3.4937,143.11,143.03,9.6355]
[1728091624015,11.72,143.14,143.04,6.14]
[1728091624409,11.72,143.14,143.04,9.6353]
[1728091624410,3.4938,143.11,143.04,9.6353]
[1728091624605,11.72,143.14,143.04,17.86]
[1728091624822,11.72,143.14,143.05,1.3742]
[1728091625120,0.12502,143.09,143.05,1.3742]
[1728091625912,0.12502,143.09,143.06,3.4948]
[1728091627113,0.12502,143.09,143.05,2.7605]
[1728091628926,3.61912,143.09,143.05,2.7605]
[1728091629420,3.4947,143.07,143.01,4.9153]
[1728091629718,0.12502,143.09,143.02,6.14]
[1728091630114,3.4948,143.06,143.02,6.14]
[1728091630425,0.12502,143.09,142.99,11.72]
[1728091630615,0.12502,143.09,143.01,2.7332]
[1728091630814,0.12502,143.09,143.02,6.14]
[1728091631218,0.12502,143.09,143.02,7.5047]
[1728091631521,0.12502,143.09,143.03,6.14]
[1728091632026,3.61932,143.09,143.03,9.6353]
[1728091632211,3.61932,143.09,143.03,6.14]
[1728091633328,3.61932,143.09,143.03,9.6355]
[1728091634630,3.61932,143.09,143.03,6.14]
[1728091634832,0.12502,143.09,143.04,3.4951]
[1728091635130,0.12502,143.09,143.03,17.86]
[1728091637137,0.12502,143.09,143.05,3.4949]
[1728091637932,0.12502,143.09,143.03,17.86]
[1728091638324,0.12502,143.09,143.07,3.4944]
[1728091638634,0.12502,143.09,143.08,6.14]
[1728091639028,0.12502,143.09,143.08,5.89682064]
[1728091641631,0.12502,143.09,143.08,8.57282064]
[1728091644330,3.61782,143.15,143.1,3.4936]
[1728091644527,3.61782,143.15,143.08,8.57282064]
[1728091644528,0.12502,143.15,143.08,8.57282064]
[1728091645133,0.12502,143.15,143.12,3.4932]
[1728091645640,0.12502,143.15,143.12,9.6332]
[1728091645935,0.12502,143.15,143.12,6.14]
[1728091647242,0.12502,143.15,143.12,9.6333]
[1728091647430,0.12502,143.15,143.12,6.14]
[1728091648137,3.61772,143.15,143.12,6.14]
[1728091649036,0.12502,143.15,143.12,6.14]
[1728091649235,3.493,143.14,143.12,6.14]
[1728091654235,0.12502,143.15,143.12,6.14]
[1728091654442,3.493,143.14,143.12,6.14]
[1728091655429,3.4931,143.13,143.12,6.14]
[1728091656940,3.4929,143.14,143.1,9.7138]
[1728091657634,0.12502,143.15,143.1,6.22]
[1728091658342,3.493,143.14,143.1,9.7138]
[1728091659635,0.12502,143.15,143.1,6.22]
[1728091659845,3.61782,143.15,143.11,3.4935]
[1728091661141,3.4929,143.14,143.1,9.7138]
[1728091661645,0.12502,143.15,143.1,9.7138]
[1728091661838,3.4931,143.13,143.1,9.7138]
[1728091663237,3.493,143.14,143.1,9.7138]
[1728091663737,11.003,143.14,143.1,9.7138]
[1728091668945,11.003,143.14,143.11,0.71160667]
[1728091669148,3.4932,143.13,143.11,0.71160667]
[1728091670264,11.0029,143.14,143.11,0.71160667]
[1728091670750,3.4929,143.14,143.11,0.71160667]
[1728091672149,11.0029,143.14,143.12,1.19410574]
[1728091672750,11.0029,143.14,143.13,1.19406882]
[1728091672952,11.0029,143.14,143.12,1.19406882]
[1728091673253,11.0029,143.14,143.13,1.19406882]
[1728091673456,11.0029,143.14,143.12,1.19406882]
[1728091673644,11.0029,143.14,143.13,1.19406882]
[1728091673845,11.0029,143.14,143.12,1.19406882]
[1728091674150,11.0029,143.14,143.13,1.19406882]
[1728091674350,11.0029,143.14,143.12,1.19406882]
[1728091674554,11.0029,143.14,143.13,1.19406882]
[1728091674754,11.0029,143.14,143.12,1.19406882]
[1728091674951,11.0029,143.14,143.13,1.19406882]
[1728091675145,11.0029,143.14,143.12,1.19406882]
[1728091675449,11.0029,143.14,143.13,1.19410497]
[1728091675654,11.0029,143.14,143.12,1.19410497]
[1728091675856,11.0029,143.14,143.13,1.19410497]
[1728091676056,11.0029,143.14,143.11,3.4936]
[1728091677555,11.0032,143.13,143.09,9.714]
[1728091677756,11.0032,143.13,143.09,6.22]
[1728091679154,11.0032,143.13,143.1,3.4938]
[1728091679351,3.4932,143.13,143.1,3.4938]
[1728091679554,11.003,143.14,143.1,3.4938]
[1728091680258,7.51,143.14,143.09,6.22]
[1728091680563,7.51,143.14,143.09,13.73]
[1728091681956,11.003,143.14,143.1,3.4937]
[1728091682958,11.003,143.14,143.11,21.19342605]
[1728091683162,3.4931,143.13,143.12,17.69982605]
[1728091683367,6.94302163,143.13,143.12,17.69982605]
[1728091684163,6.94302163,143.13,143.1,17.69982605]
[1728091684465,10.43612163,143.13,143.11,17.69982605]
[1728091684670,10.43612163,143.13,143.12,17.69982605]
[1728091685274,3.4936,143.11,143.1,17.69982605]
[1728091687258,3.4936,143.11,143.1,33.78172811]
[1728091687469,3.4936,143.11,143.1,17.69982605]
[1728091687661,3.4936,143.11,143.1,33.78172811]
[1728091687861,11.0034,143.12,143.1,17.69982605]
[1728091688058,3.4934,143.12,143.11,17.69982605]
[1728091688267,3.4934,143.12,143.11,33.78172811]
[1728091688465,3.4934,143.12,143.11,17.69982605]
[1728091688870,3.4934,143.12,143.11,33.78172811]
[1728091689168,3.4934,143.12,143.11,17.69982605]
[1728091689475,11.0034,143.12,143.11,17.69982605]
[1728091689659,11.0034,143.12,143.11,33.78172811]
[1728091689860,11.0034,143.12,143.11,17.69982605]
[1728091690059,11.0034,143.12,143.08,8.576]
[1728091690971,11.0034,143.12,143.08,12.0703]
[1728091691166,3.4937,143.11,143.08,12.0703]
[1728091691367,0.12502,143.15,143.08,16.086]
[1728091691675,7.51,143.13,143.08,16.086]
[1728091691971,7.63502,143.15,143.09,7.51]
[1728091692357,11.12782,143.15,143.11,3.4934]
[1728091692561,7.63502,143.15,143.11,3.4934]
[1728091694065,3.4929,143.14,143.11,3.4934]
[1728091694874,11.0029,143.14,143.11,3.4934]
[1728091696077,7.51,143.12,143.08,8.576]
[1728091696276,7.51,143.12,143.08,16.086]
[1728091696776,7.51,143.12,143.09,3.4939]
[1728091698281,3.61772,143.15,143.11,3.4934]
[1728091698468,11.12772,143.15,143.11,3.4934]
[1728091699072,11.12772,143.15,143.11,2.76401483]
[1728091699267,11.12772,143.15,143.12,1.19402146]
[1728091699678,11.12772,143.15,143.11,2.76401483]
[1728091699873,11.12772,143.15,143.12,1.19403156]
[1728091701475,7.51,143.14,143.12,1.19403156]